Cogmind - Beta 14 @@@ ROGUE MODE // 2024.08.12 @ 08:41:23 Player: Cereal Killer Result: Destroyed by P-70 Sage with High-powered Shock Rifle Performance ------------- Evolutions (5) 2500 Regions Visited (18) 3600 Robots Destroyed (286) 1430 Value Destroyed (14403) 14403 Prototype IDs (44) 880 Alien Tech Used (0) 0 Bonus (7654) 7654 TOTAL SCORE: 30467 Bonus ------- Triggered High Security 500 High Alert Combat Kills 4422 Follower Combat Kills 1502 Entered Garrisons 600 Aligned with FarCom 300 Met Data Miner 300 Acquired ECA 300 Friendly Fire -270 Cogmind --------- Core Integrity 0/1000 Matter 265/300 Energy 96/100 System Corruption 7% Temperature Cool (0) Movement Core (50) Location -5/Extension Parts ------- > --- POWER (2) -------- (None) > --- PROPULSION (2) --- (None) > --- UTILITY (9) ------ Skeleton Box > --- WEAPON (4) ------- (None) > --- INVENTORY (5) ---- Wheel Improved Energy Well (400) Compact Matter Pod (150) Encrypted Comm Array Transmission Jammer Peak State ------------ > --- POWER ------------ Light Nuclear Core Neutrino Core > --- PROPULSION ------- Improved Medium Treads Armored Medium Treads > --- UTILITY ---------- Advanced Heat Sink Advanced Cooling System Large Storage Unit Improved Signal Interpreter Advanced Targeting Computer Target Analyzer Improved Weapon Cycler Improved Powered Armor System Shield > --- WEAPON ----------- Plasma Rifle Wave Gun Cooled Particle Cannon Phase Cannon > --- INVENTORY -------- Backup Power III Light Nuclear Core Wheel Improved Energy Well Compact Matter Pod Encrypted Comm Array Improved Medium Armor Plating Force Field Remote Shield Skeleton Box Disruptor Cannon Disruptor Cannon KE Penetrator Remote Datajack Lance [Rating: 84] Favorites ----------- Power Light Nuclear Core Engine Heavy Ion Engine Power Core Light Nuclear Core Reactor Antimatter Reactor Propulsion Armored Wheel Treads Armored Treads Leg Carbon-fiber Leg Wheel Armored Wheel Utility Large Storage Unit Device Advanced Heat Sink Storage Large Storage Unit Processor Advanced Targeting Computer Hackware System Shield Protection Improved Medium Armor Plating Weapon Precision Beam Rifle Energy Gun Precision Beam Rifle Energy Cannon Cooled Particle Cannon Ballistic Gun KE Penetrator Ballistic Cannon Flak Cannon Launcher Smartbomb Launcher Special Weapon Remote Datajack Impact Weapon Impact Mace Slashing Weapon Power Sword Piercing Weapon Lance Special Melee Weapon Improved Datajack Build | -11 -10 -10 -10 -9 -8 -8 -8 -8 -7 -7 -7 -6 -6 -6 -6 -5 -5 -5 ------- Run | Yrd Mat Min Exi Min Mat Gar Mat Gar Fac Sto Gar Fac Low Low Dat Pro Fac Ext Slots Evolved 10 | . . . . . 4 . . . 2 . . 2 . . . . 2 . Power 1 | . . . . . . . . . 1 . . . . . . . . . Propulsion . | . . . . . . . . . . . . . . . . . . . Utility 7 | . . . . . 3 . . . 1 . . 1 . . . . 2 . Weapon 2 | . . . . . 1 . . . . . . 1 . . . . . . Parts Attached 274 | 6 4 4 . 6 36 12 . 13 9 25 17 5 5 10 . 4 70 48 Power 26 | 1 1 1 . . 2 . . . 2 2 . 2 . 1 . 1 8 5 Engine 12 | 1 1 . . . 2 . . . . 1 . . . 1 . 1 2 3 Core 13 | . . 1 . . . . . . 2 1 . 2 . . . . 6 1 Reactor 1 | . . . . . . . . . . . . . . . . . . 1 Propulsion 51 | 2 . . . 3 9 4 . 4 1 . . . 2 1 . 3 18 4 Treads 14 | . . . . . 5 1 . . . . . . . . . 1 7 . Leg 1 | . . . . . . . . . . . . . . . . 1 . . Wheel 36 | 2 . . . 3 4 3 . 4 1 . . . 2 1 . 1 11 4 Hover . | . . . . . . . . . . . . . . . . . . . Flight . | . . . . . . . . . . . . . . . . . . . Utility 89 | 1 1 1 . 2 13 3 . 3 2 9 6 1 2 3 . . 28 14 Device 52 | . 1 . . 1 5 2 . 2 1 3 2 . 2 2 . . 21 10 Storage 3 | 1 . . . 1 1 . . . . . . . . . . . . . Processor 8 | . . . . . 2 . . . 1 1 1 1 . 1 . . . 1 Hackware 2 | . . . . . 1 . . . . . . . . . . . 1 . Protection 24 | . . 1 . . 4 1 . 1 . 5 3 . . . . . 6 3 Artifact . | . . . . . . . . . . . . . . . . . . . Weapon 108 | 2 2 2 . 1 12 5 . 6 4 14 11 2 1 5 . . 16 25 Energy Gun 21 | 1 1 . . . . . . . 3 5 2 1 1 2 . . 3 2 Energy Cannon 27 | . 1 2 . . 3 . . 2 . 3 1 . . . . . 6 9 Ballistic Gun 15 | 1 . . . . 1 . . . . . 1 . . 2 . . 3 7 Ballistic Cannon 14 | . . . . . 3 4 . 2 . 1 1 . . 1 . . . 2 Launcher 8 | . . . . . 1 . . . . . 2 . . . . . . 5 Special Weapon 2 | . . . . . . . . . . 1 . . . . . . 1 . Impact Weapon 16 | . . . . 1 3 1 . 2 1 4 4 . . . . . . . Slashing Weapon 1 | . . . . . . . . . . . . 1 . . . . . . Piercing Weapon 3 | . . . . . . . . . . . . . . . . . 3 . Special Melee Weapon 1 | . . . . . 1 . . . . . . . . . . . . . Unidentified Prototypes 7 | . . . . . 1 . . . 1 4 . . . . . . 1 . Parts Lost 82 | . 2 . . 1 3 . . 5 . 6 5 . 6 8 . 3 17 26 Power 16 | . 1 . . . 1 . . . . 2 1 . 1 1 . . 5 4 Propulsion 15 | . . . . 1 1 . . 2 . . . . 1 1 . 1 5 3 Utility 28 | . . . . . . . . 1 . 4 4 . 3 1 . . 3 12 Weapon 23 | . 1 . . . 1 . . 2 . . . . 1 5 . 2 4 7 Highest Loss Streak 15 | . 1 . . 1 1 . . 5 . 4 2 . 2 4 . 2 3 15 To Critical Strikes 1 | . . . . . . . . . . . . . . 1 . . . . Average Slot Usage (%) 94 | . 96 100 100 95 98 100 100 98 95 88 84 78 82 88 86 92 97 95 Engine 4 | . 13 5 . . 6 9 9 9 6 1 3 . . 4 . 6 4 . Core 5 | . . 8 14 14 2 . . . 8 11 7 10 8 6 6 6 5 9 Treads 2 | . . . . . 12 . . . . . . . . . . . 1 . Wheel 11 | . 28 28 28 23 5 17 18 17 10 7 7 6 11 12 13 9 9 10 Device 12 | . 11 . . 8 14 9 9 9 15 5 9 6 12 12 13 13 14 18 Storage 7 | . 14 14 14 14 9 9 9 9 7 7 7 6 6 6 6 6 5 5 Processor 12 | . . . . . 6 9 9 9 7 11 9 15 20 25 26 26 19 17 Hackware 4 | . . . . . 5 9 9 9 7 7 2 . . . . . 3 5 Protection 7 | . . 13 14 5 8 9 9 8 7 10 15 13 2 . . . 6 3 Energy Gun 3 | . 12 1 . . . . . . 10 15 7 5 5 4 . . 3 . Energy Cannon 6 | . 13 26 28 16 5 10 . 12 5 4 2 . . . . . 8 4 Ballistic Gun 3 | . 1 . . . 5 . . . . . . . . . 13 12 5 6 Ballistic Cannon 4 | . . . . . 11 11 27 9 1 . 2 6 6 6 6 5 . . Impact Weapon 3 | . . . . 11 3 5 . 3 5 2 5 6 6 5 . . . . Piercing Weapon 1 | . . . . . . . . . . . . . . . . . 3 5 Peak Build Rating 84 | 6 7 16 17 17 38 39 39 39 49 52 50 63 63 63 55 62 84 77 Average Rating 47 | 4 6 14 16 15 30 36 39 37 45 48 48 57 55 59 55 60 71 71 On Entrance 37 | . 6 7 16 17 15 34 39 39 39 49 48 50 62 53 55 55 49 71 Naked Turns 1 | . . . . . . . . . . . . . . . . . . 1 Heaviest Build 83 | 11 15 30 30 30 67 71 67 67 64 65 60 67 72 71 62 72 83 77 Greatest Support 57 | 20 20 20 20 20 40 28 24 26 28 28 28 28 28 24 24 30 57 32 Greatest Overweight (x) 7 | . . 1 1 1 5 4 2 5 2 2 2 2 2 5 2 5 7 4 Average Overweight (x) 1 | . . . 1 1 1 2 2 2 1 1 1 2 2 2 2 3 2 1 Largest Inventory Capacity 15 | 8 8 8 8 10 15 15 15 15 15 15 15 15 15 15 15 15 15 15 Average Capacity 14 | 7 8 8 8 8 14 15 15 15 15 15 15 15 15 15 15 15 15 14 Most Carried 15 | 6 8 8 8 9 15 15 15 15 15 15 15 15 15 15 12 15 15 15 Average Carried 13 | 4 7 7 7 8 13 14 15 13 14 13 13 14 13 14 12 13 14 13 Final Capacity 15 | 8 8 8 8 10 15 15 15 15 15 15 15 15 15 15 15 15 15 5 Final Carried 15 | 6 8 8 8 9 15 15 15 15 15 12 14 15 14 12 12 15 15 5 Class Distribution -------------------- 33% | Mutant 30% | Scavenger-Gunner 14% | Skirmisher 8% | Scavenger-Mutant 6% | Gunner 3% | Tank Dominant Class ---------------- Mutant | -10/Materials Mutant | -10/Mines Mutant | -10/Exiles Mutant | -9/Mines Skirmisher | -8/Materials Mutant | -8/Garrison Skirmisher | -8/Materials Mutant | -8/Garrison Mutant | -7/Factory Mutant | -7/Storage Mutant | -7/Garrison Scavenger-Gunner | -6/Factory Gunner | -6/Lower Caves Scavenger-Gunner | -6/Lower Caves Scavenger-Gunner | -6/Data Miner Scavenger-Gunner | -5/Proximity Caves Scavenger-Gunner | -5/Factory Scavenger-Gunner | -5/Extension Resources | -11 -10 -10 -10 -9 -8 -8 -8 -8 -7 -7 -7 -6 -6 -6 -6 -5 -5 -5 ----------- Run | Yrd Mat Min Exi Min Mat Gar Mat Gar Fac Sto Gar Fac Low Low Dat Pro Fac Ext Matter Collected 6539 | 263 50 40 . 60 638 573 . 532 162 249 489 . 284 213 . 363 929 1694 Remotely . | . . . . . . . . . . . . . . . . . . . Salvage Created 11269 | 78 408 52 . 96 775 791 . 340 430 971 1176 . 271 274 . 396 2262 2949 Parts 460 | 4 17 4 . 9 37 42 . 13 22 37 37 . 6 19 . 10 98 105 Haulers Intercepted 10 | . 1 . . . 1 . . . 1 4 . . . . . . 1 2 Recyclers Shooed 6 | . . . . 1 . . . . . . . . . . . . 5 . Parts Field Recycled . | . . . . . . . . . . . . . . . . . . . Retrieved Matter . | . . . . . . . . . . . . . . . . . . . Parts Self-Destructed 34 | . . . . . . . . . . . . . 6 19 . 9 . . Prevented . | . . . . . . . . . . . . . . . . . . . Kills | -11 -10 -10 -10 -9 -8 -8 -8 -8 -7 -7 -7 -6 -6 -6 -6 -5 -5 -5 ------- Run | Yrd Mat Min Exi Min Mat Gar Mat Gar Fac Sto Gar Fac Low Low Dat Pro Fac Ext Combat Hostiles Destroyed 221 | . 5 1 . 7 23 18 . 9 4 14 20 . 9 6 . 6 34 65 Melee 10 | . . . . 2 5 . . . . . . . 1 . . . . 2 Guns 56 | . 1 . . . 2 . . . 4 9 8 . 2 1 . . 20 9 Cannons 94 | . 3 1 . 4 14 18 . 9 . 1 6 . 5 5 . 6 14 8 AOE 50 | . 1 . . . 1 . . . . . 3 . . . . . . 45 Classes Destroyed 21 | 1 4 1 . . 4 1 . 2 . 1 2 . . . . . 1 4 Worker 12 | . . . . . 2 . . . 3 1 . . . . . . 2 4 Builder 9 | . . . . . . . . . . 1 . . . . . . 4 4 Tunneler 1 | . . 1 . . . . . . . . . . . . . . . . Hauler 10 | . 1 . . . 1 . . . 1 4 . . . . . . 1 2 Recycler 13 | 1 2 . . . . . . . 2 2 . . . . . . 3 3 Mechanic 3 | . . . . . . . . . . . . . . . . . . 3 Operator 3 | . . . . . . . . . . . . . . . . . 1 2 Watcher 13 | . 1 . . . 4 1 . . . 1 . . . . . . 4 2 Swarmer 52 | . 1 . . 7 5 7 . 5 . 4 . . 3 . . . 14 6 Saboteur 1 | . . . . . . . . . . . . . . . . . . 1 Grunt 87 | . 4 1 . . 11 8 . . . 8 9 . 5 2 . 3 8 28 Brawler 7 | . . . . . . . . . . . 2 . . . . . . 5 Duelist 15 | . . . . . 1 . . . . 1 2 . . 1 . 1 1 8 Protector 3 | . . . . . . . . 1 . . . . . . . . . 2 Sentry 20 | . . . . . 5 2 . 1 1 . 2 . . . . 1 2 6 Demolisher 1 | . . . . . . . . 1 . . . . . . . . . . Specialist 2 | . . . . . . . . . . . . . . . . . . 2 Hunter 10 | . . . . . . . . . . . 3 . . 2 . . 2 3 Programmer 19 | . . . . . . 1 . 1 3 1 2 . 1 1 . 1 6 2 Heavy 2 | . . . . . 1 . . . . . . . . . . . 1 . Behemoth 1 | . . . . . . . . . . . . . . . . . . 1 Savage 1 | . . . . . . . . . . . . . . . . . . 1 Butcher 1 | . . . . . . . . . . . . . . . . . . 1 Best Kill Streak 17 | 1 4 1 . 4 4 5 . 3 3 4 5 . 4 3 . 4 9 17 Combat Bots Only 15 | . 2 1 . 4 4 5 . 3 2 3 5 . 4 3 . 4 7 15 Max Kills in Single Turn 7 | 1 1 1 . 1 1 2 . 1 2 2 3 . 1 1 . 1 2 7 Gunslinging . | . . . . . . . . . . . . . . . . . . . Exploded 7 | . 1 . . . 1 . . . . . 3 . . . . . . 7 Melee 1 | . . . . 1 1 . . . . . . . 1 . . . . 1 Uniques/NPCs Destroyed . | . . . . . . . . . . . . . . . . . . . Combat | -11 -10 -10 -10 -9 -8 -8 -8 -8 -7 -7 -7 -6 -6 -6 -6 -5 -5 -5 -------- Run | Yrd Mat Min Exi Min Mat Gar Mat Gar Fac Sto Gar Fac Low Low Dat Pro Fac Ext Hostile Shots Fired 1158 | . 21 . . 86 106 79 . 49 26 89 93 . 64 65 . 37 183 260 Missed 320 | . 7 . . 17 37 15 . 12 13 19 34 . 11 12 . 13 51 79 Damage Taken 13961 | . 295 . . 540 1240 604 . 935 112 1204 1055 . 804 643 . 390 2913 3226 Core 2122 | . 56 . . 114 244 90 . 97 6 141 86 . 108 87 . 84 314 695 Absorbed by Shields 1031 | . . . . . . 64 . . . . . . 174 216 . 132 35 410 Ignored by Resistances 233 | . . . . . 96 119 . 18 . . . . . . . . . . Regen/Repaired (Parts) 703 | . . . . . . . . . 98 235 . . . . . . 370 . Core Remaining (%) 57 | 100 . . . 32 . . . 21 . . 66 . . . . 67 . . Volleys Fired 568 | 1 21 3 . 18 47 57 . 49 16 38 59 . 21 20 . 15 87 116 Largest 4 | 2 2 2 . 2 3 3 . 3 3 3 3 . 2 2 . 3 4 3 Hottest 271 | 60 100 150 . 150 164 164 . 178 183 183 158 . 136 136 . 131 271 204 Shots Fired 1245 | 2 41 6 . 20 121 123 . 106 37 95 111 . 34 25 . 45 268 211 Gun 472 | 2 20 . . . 27 . . . 37 71 67 . 15 5 . 30 130 68 Cannon 707 | . 21 6 . 20 92 123 . 106 . 21 38 . 19 20 . 15 137 89 Launcher 62 | . . . . . 2 . . . . . 6 . . . . . . 54 Special 4 | . . . . . . . . . . 3 . . . . . . 1 . Kinetic 489 | 1 5 . . . 101 55 . 62 . . 30 . 19 20 . 45 58 93 Thermal 649 | 1 36 6 . 20 18 68 . 44 37 92 75 . 15 5 . . 182 50 Explosive 54 | . . . . . . . . . . . . . . . . . . 54 Electromagnetic 49 | . . . . . 2 . . . . . 6 . . . . . 27 14 Robot Hit Streak 35 | 1 9 3 . 4 10 21 . 9 12 35 24 . 12 3 . 8 12 32 Robot Miss Streak 11 | . 3 1 . 3 11 4 . 3 1 2 3 . 1 3 . 3 6 5 Penetration Max 1 | . . . . . . . . . . . . . . . . . 1 1 Secondary Targets 2 | . . . . . . . . . . . 1 . . . . . . 1 Max Gunslinging Chain 1 | . . . . . . . . . . . 1 . . . . . . 1 Shots Hit Robots 814 | 1 25 4 . 14 111 65 . 59 22 82 87 . 29 14 . 19 159 123 Core Hits 591 | 1 12 3 . 6 88 32 . 26 15 34 43 . 9 5 . 8 84 225 Critical Kills 14 | . 1 . . 1 1 . . . . . . . . . . . 3 8 Critical Parts Destroyed 21 | . . . . 1 5 . . . . . 3 . 2 . . . 4 6 Critical Strikes 73 | . 1 . . 2 6 2 . 2 3 7 11 . 8 1 . 3 12 15 Burn 23 | . . . . . . . . . 3 7 6 . 3 . . . 4 . Meltdown 2 | . 1 . . . . . . . . . . . . . . . . 1 Destroy 21 | . . . . . . . . . . . . . . . . . 7 14 Blast 12 | . . . . . . 2 . 2 . . 1 . 3 1 . 3 . . Smash 14 | . . . . 2 6 . . . . . 4 . 2 . . . . . Impale 1 | . . . . . . . . . . . . . . . . . 1 . Melee Attacks 205 | . . . . 7 32 20 . 23 13 16 39 . 4 1 . . 33 17 Impact 149 | . . . . 7 26 20 . 23 13 16 39 . 4 1 . . . . Slashing . | . . . . . . . . . . . . . . . . . . . Piercing 50 | . . . . . . . . . . . . . . . . . 33 17 Sneak Attacks 16 | . . . . . 9 . . . 1 1 . . . . . . 3 2 Combat Hostiles . | . . . . . . . . . . . . . . . . . . . Follow-up Attacks . | . . . . . . . . . . . . . . . . . . . Damage Inflicted 37621 | 15 386 100 . 397 2574 1828 . 1438 676 1930 2854 . 1430 648 . 1060 4923 17362 Guns 6511 | 15 101 . . . 188 . . . 374 1048 990 . 211 69 . 183 1995 1337 Cannons 13140 | . 285 100 . 275 1568 1828 . 1438 . 382 921 . 1119 579 . 877 2360 1408 Explosions 14990 | . . . . . 104 . . . 140 . 305 . . . . . 286 14155 Melee 2975 | . . . . 122 709 . . . 162 500 638 . 100 . . . 282 462 Ramming 5 | . . . . . 5 . . . . . . . . . . . . . Kinetic 9153 | 15 14 . . . 1537 636 . 760 . . 812 . 1119 579 . 1060 1081 1540 Thermal 10255 | . 372 100 . 275 219 1192 . 678 415 1430 1162 . 211 69 . . 3090 1042 Explosive 14441 | . . . . . . . . . . . . . . . . . 286 14155 Electromagnetic 792 | . . . . . 104 . . . 99 . 242 . . . . . 184 163 Impact 2231 | . . . . 122 709 . . . 162 500 638 . 100 . . . . . Slashing . | . . . . . . . . . . . . . . . . . . . Piercing 744 | . . . . . . . . . . . . . . . . . 282 462 Highest Corruption 7 | . . . . . . . . 1 . . 2 . . . . . 3 7 Average Corruption 2 | . . . . . . . . 1 . . 2 . . . . . 2 2 Corruption Purged 7 | . . . . . . . . . . . . . . . . . 3 4 Corruption Blocked 6 | . . . . . . . . . . . . . . . . 1 5 . Effects 42 | . . . . . . . . 4 . . 3 . . . . . 14 21 Message Errors 7 | . . . . . . . . 1 . . 1 . . . . . 1 4 Matter Fused 9 | . . . . . . . . 1 . . 1 . . . . . 2 5 Heat Flow Errors 6 | . . . . . . . . . . . . . . . . . 3 3 Energy Discharges 7 | . . . . . . . . 1 . . 1 . . . . . 2 3 Data Loss (minor) 6 | . . . . . . . . . . . . . . . . . 3 3 Data Loss (major) 2 | . . . . . . . . . . . . . . . . . . 2 Misfires 2 | . . . . . . . . 1 . . . . . . . . 1 . Weapon Failures 3 | . . . . . . . . . . . . . . . . . 2 1 Overload Shots . | . . . . . . . . . . . . . . . . . . . Overflow Damage 2061 | . . . . 63 446 76 . 90 8 90 195 . 269 118 . 82 120 504 Projectiles 633 | . . . . 20 . 76 . 90 . 19 10 . 169 118 . 82 48 1 Explosions 496 | . . . . . . . . . 1 . . . . . . . 29 466 Melee 932 | . . . . 43 446 . . . 7 71 185 . 100 . . . 43 37 Knockbacks 61 | . . . . . 26 3 . 1 2 3 6 . 10 5 . 4 . 1 Impact 8 | . . . . . 1 . . . 2 2 3 . . . . . . . Kinetic 49 | . . . . . 24 2 . 1 . . 3 . 9 5 . 4 . 1 Secondary 4 | . . . . . 1 1 . . . 1 . . 1 . . . . . Self-Inflicted Damage 127 | . . . . . . . . . . . 13 . . . . . 114 . Shots 2 | . . . . . . . . . . . 1 . . . . . 1 . Rammed 1 | . . . . . 1 . . . . . . . . . . . . . Targets Rammed 1 | . . . . . 1 . . . . . . . . . . . . . Kicked . | . . . . . . . . . . . . . . . . . . . Crushed . | . . . . . . . . . . . . . . . . . . . Highest Temperature 613 | . 246 111 . 244 298 314 . 111 187 613 260 . 323 144 . 30 315 244 Average Temperature 86 | . 95 58 . 136 92 65 . 45 52 125 76 . 130 61 . 7 59 98 Received Heat Transfer 2552 | . 63 . . . 450 227 . 27 12 360 159 . 328 132 . 113 207 474 Effects 11 | . . . . 1 . . . . . 9 . . 1 . . . . . Shutdowns 3 | . . . . . . . . . . 3 . . . . . . . . Energy Bleed 3 | . . . . 1 . . . . . 1 . . 1 . . . . . Interference 3 | . . . . . . . . . . 3 . . . . . . . . Matter Decay 1 | . . . . . . . . . . 1 . . . . . . . . Damage (major) 1 | . . . . . . . . . . 1 . . . . . . . . Siege Activations . | . . . . . . . . . . . . . . . . . . . Robots Corrupted 12 | . . . . 1 2 . . . 1 3 4 . 1 . . . . . Combat Hostiles 8 | . . . . 1 1 . . . . 3 2 . 1 . . . . . Parts Fried 22 | . . . . . 11 . . . 2 3 3 . 2 . . . . 1 Impact Corruptions 28 | . . . . 2 11 . . . 2 6 5 . 2 . . . . . Robots Melted 6 | . 1 . . . . 1 . . . 2 1 . . . . . . 1 Combat Hostiles 3 | . . . . . . . . . . 1 1 . . . . . . 1 Parts Melted 41 | . 2 . . 1 . 2 . . 1 7 10 . 1 . . . 16 1 Heat Transferred 17742 | . 792 148 . 407 333 1887 . 881 1012 3293 2616 . 666 148 . . 4448 1111 Parts Sabotaged . | . . . . . . . . . . . . . . . . . . . Parts Stolen . | . . . . . . . . . . . . . . . . . . . Parts Stripped . | . . . . . . . . . . . . . . . . . . . Power Chain Reactions 4 | . . . . . . . . . 2 . 2 . . . . . . . Alert | -11 -10 -10 -10 -9 -8 -8 -8 -8 -7 -7 -7 -6 -6 -6 -6 -5 -5 -5 ------- Run | Yrd Mat Min Exi Min Mat Gar Mat Gar Fac Sto Gar Fac Low Low Dat Pro Fac Ext Peak Influence 3236 | 5 150 85 . 172 297 1220 598 1076 873 674 1483 778 . . . . 1241 3236 Initial 778 | . 3 34 . . . 193 594 388 564 385 438 778 . . . . 6 604 Average 586 | 2 73 70 . 93 105 712 597 591 618 541 1008 778 . . . . 486 1411 Maximum Alert Level 5 | . . . . . 1 4 2 3 3 2 4 3 . . . . 4 5 Low Security (%) 34 | 100 100 100 . 100 78 2 . . . . . . . . . . 49 . Level 1 6 | . . . . . 21 20 . 16 . 1 . . . . . . 1 . Level 2 26 | . . . . . . 39 100 63 68 98 18 . . . . . 12 32 Level 3 17 | . . . . . . 12 . 20 31 . 49 100 . . . . 19 13 Level 4 11 | . . . . . . 25 . . . . 31 . . . . . 16 19 Level 5 . | . . . . . . . . . . . . . . . . . . 1 High Security 3 | . . . . . . . . . . . . . . . . . . 31 Max Security . | . . . . . . . . . . . . . . . . . . . Squads Dispatched 43 | . 1 1 . . 4 . . . 3 3 . . . . . . 12 19 Investigation 6 | . 1 1 . . . . . . 1 . . . . . . . 3 . Extermination 5 | . . . . . . . . . 1 1 . . . . . . 3 . Reinforcement 13 | . . . . . 4 . . . 1 1 . . . . . . 5 2 Assault 19 | . . . . . . . . . . 1 . . . . . . 1 17 Garrison . | . . . . . . . . . . . . . . . . . . . Intercept . | . . . . . . . . . . . . . . . . . . . Searches Triggered . | . . . . . . . . . . . . . . . . . . . Construction Impeded 3 | . . . . . 1 . . . . . . . . . . . 1 1 Haulers Reinforced 3 | . . . . . . . . . 1 . . . . . . . 2 . Active Scanning Responses . | . . . . . . . . . . . . . . . . . . . Cargo Convoy Interrupts . | . . . . . . . . . . . . . . . . . . . Stealth | -11 -10 -10 -10 -9 -8 -8 -8 -8 -7 -7 -7 -6 -6 -6 -6 -5 -5 -5 --------- Run | Yrd Mat Min Exi Min Mat Gar Mat Gar Fac Sto Gar Fac Low Low Dat Pro Fac Ext Distress Signals 10 | . . . . . 2 . . . . 2 . . . . . . 3 3 Communications Jammed . | . . . . . . . . . . . . . . . . . . . Distress Signals . | . . . . . . . . . . . . . . . . . . . Times Spotted 345 | . 11 3 . 7 36 27 . 17 6 27 19 . 14 8 . 7 55 108 Peak Tracking Total 17 | . 3 2 . 4 6 6 . 3 3 7 5 . 4 3 . 3 7 17 Tactical Retreats 23 | . 1 . . . 3 1 . . . 3 3 . 3 1 . . 5 3 Traps | -11 -10 -10 -10 -9 -8 -8 -8 -8 -7 -7 -7 -6 -6 -6 -6 -5 -5 -5 ------- Run | Yrd Mat Min Exi Min Mat Gar Mat Gar Fac Sto Gar Fac Low Low Dat Pro Fac Ext Traps Triggered 25 | . 1 . . . 1 1 . 4 1 1 5 . . . . . 5 6 Indirectly 1 | . . . . . . . . . 1 . . . . . . . . . Trap Hack Attempts . | . . . . . . . . . . . . . . . . . . . Triggered . | . . . . . . . . . . . . . . . . . . . Disarmed 6 | . . . . . 6 . . . . . . . . . . . . . Reprogrammed . | . . . . . . . . . . . . . . . . . . . Reused . | . . . . . . . . . . . . . . . . . . . Traps Extracted . | . . . . . . . . . . . . . . . . . . . Installed . | . . . . . . . . . . . . . . . . . . . Triggered 2 | . . . . . . . . . . . 1 . . 1 . . . . Machines | -11 -10 -10 -10 -9 -8 -8 -8 -8 -7 -7 -7 -6 -6 -6 -6 -5 -5 -5 ---------- Run | Yrd Mat Min Exi Min Mat Gar Mat Gar Fac Sto Gar Fac Low Low Dat Pro Fac Ext Machines Disabled 64 | . 1 1 . . . 8 . 8 26 2 6 . . . . . 5 7 Max in Single Turn 16 | . 1 1 . . . 1 . 2 16 1 1 . . . . . 2 1 Garrison Access 4 | . . . . . . . . . 1 . . . . . . . 3 . Garrison Relay 14 | . . . . . . 6 . 3 . . 5 . . . . . . . Phase Generator 1 | . . . . . . . . 1 . . . . . . . . . . Machines Repaired . | . . . . . . . . . . . . . . . . . . . Machines Dismantled . | . . . . . . . . . . . . . . . . . . . Machines Sabotaged . | . . . . . . . . . . . . . . . . . . . Overloaded Fab Kills . | . . . . . . . . . . . . . . . . . . . Hacking | -11 -10 -10 -10 -9 -8 -8 -8 -8 -7 -7 -7 -6 -6 -6 -6 -5 -5 -5 --------- Run | Yrd Mat Min Exi Min Mat Gar Mat Gar Fac Sto Gar Fac Low Low Dat Pro Fac Ext Machines Accessed 57 | . 2 1 2 . 8 3 1 2 6 7 2 2 . . 4 . 16 1 Terminals 35 | . 1 . . . 5 3 . 2 4 5 2 1 . . . . 11 1 Fabricators 1 | . . . . . . . . . . . . . . . . . 1 . Repair Stations 4 | . . . . . 1 . . . 1 1 . 1 . . . . . . Recycling Units 3 | . 1 . . . 1 . . . . . . . . . . . 1 . Scanalyzers . | . . . . . . . . . . . . . . . . . . . Garrison Access 7 | . . . . . 1 . 1 . 1 1 . . . . . . 3 . Total Hacks 141 | . 3 1 5 . 29 7 1 4 17 13 3 2 . . 30 . 24 2 Successful 73 | . 2 1 5 . 13 2 1 1 8 4 . . . . 30 . 6 . Failed 68 | . 1 . . . 16 5 . 3 9 9 3 2 . . . . 18 2 Catastrophic 13 | . . . . . . 1 . 1 3 1 2 . . . . . 5 . Database Lockouts . | . . . . . . . . . . . . . . . . . . . Manual 44 | . 3 . 1 . 15 . . . 5 5 . . . . . . 15 . Terminals 82 | . 2 . . . 26 7 . 4 11 9 3 1 . . . . 17 2 Fabricators 1 | . . . . . . . . . . . . . . . . . 1 . Repair Stations 7 | . . . . . 1 . . . 3 2 . 1 . . . . . . Recycling Units 3 | . 1 . . . 1 . . . . . . . . . . . 1 . Scanalyzers . | . . . . . . . . . . . . . . . . . . . Garrison Access 12 | . . . . . 1 . 1 . 3 2 . . . . . . 5 . Terminal Hacks 50 | . . 1 5 . 7 2 . 1 2 1 . . . . 30 . 1 . Record 15 | . . . 4 . . . . . . . . . . . 11 . . . Part Schematic 8 | . . . . . . . . . . . . . . . 8 . . . Robot Schematic 8 | . . . . . . . . . . . . . . . 8 . . . Robot Analysis 2 | . . . . . 2 . . . . . . . . . . . . . Prototype ID Bank 4 | . . . . . . . . . . . . . . . 3 . 1 . Open Door 2 | . . 1 . . . . . . . 1 . . . . . . . . Branch Access Points 1 | . . . . . . . . . 1 . . . . . . . . . Unreport Threat 1 | . . . . . 1 . . . . . . . . . . . . . Locate Traps 1 | . . . . . 1 . . . . . . . . . . . . . Disarm Traps 1 | . . . . . 1 . . . . . . . . . . . . . Zone Layout 3 | . . . . . 2 . . . 1 . . . . . . . . . Garrison Registry 2 | . . . . . . 1 . 1 . . . . . . . . . . Patrol Navigation 1 | . . . . . . 1 . . . . . . . . . . . . Derelict Proto ID Bank 1 | . . . 1 . . . . . . . . . . . . . . . Fabricator Hacks . | . . . . . . . . . . . . . . . . . . . Repair Station Hacks 4 | . . . . . . . . . 2 2 . . . . . . . . Scan Component 2 | . . . . . . . . . 1 1 . . . . . . . . Repair 2 | . . . . . . . . . 1 1 . . . . . . . . Recycling Unit Hacks . | . . . . . . . . . . . . . . . . . . . Scanalyzer . | . . . . . . . . . . . . . . . . . . . Garrison Access Hacks 5 | . . . . . 1 . 1 . 1 1 . . . . . . 1 . Unlock Access 3 | . . . . . 1 . 1 . . 1 . . . . . . . . Seal Access 2 | . . . . . . . . . 1 . . . . . . . 1 . Unauthorized Hacks 13 | . 2 . . . 4 . . . 3 . . . . . . . 4 . Terminals 7 | . 1 . . . 3 . . . 2 . . . . . . . 1 . Botnet 7 | . 1 . . . 3 . . . 2 . . . . . . . 1 . Fabricators . | . . . . . . . . . . . . . . . . . . . Repair Stations 2 | . . . . . 1 . . . 1 . . . . . . . . . Mechanics 2 | . . . . . 1 . . . 1 . . . . . . . . . Recycling Units 2 | . 1 . . . . . . . . . . . . . . . 1 . Tunnel 2 | . 1 . . . . . . . . . . . . . . . 1 . Scanalyzers . | . . . . . . . . . . . . . . . . . . . Garrison Access 2 | . . . . . . . . . . . . . . . . . 2 . Jam 2 | . . . . . . . . . . . . . . . . . 2 . Data Cores Recovered 1 | . . . . . . . . . . . . . . . . . 1 . Used 1 | . . . . . . . . . . . . . . . . . 1 . Hacking Detections 36 | . 1 . . . 5 2 . 1 6 5 2 2 . . . . 11 1 Full Trace Events 1 | . . . . . . . . . . . 1 . . . . . . . Feedback Events . | . . . . . . . . . . . . . . . . . . . Feedback Blocked . | . . . . . . . . . . . . . . . . . . . Robot Schematics Acquired 8 | . . . . . . . . . . . . . . . 8 . . . Robots Built . | . . . . . . . . . . . . . . . . . . . Authchips . | . . . . . . . . . . . . . . . . . . . Time . | . . . . . . . . . . . . . . . . . . . Total Robot Build Rating . | . . . . . . . . . . . . . . . . . . . Part Schematics Acquired 8 | . . . . . . . . . . . . . . . 8 . . . Parts Built . | . . . . . . . . . . . . . . . . . . . Authchips . | . . . . . . . . . . . . . . . . . . . Time . | . . . . . . . . . . . . . . . . . . . Total Part Build Rating . | . . . . . . . . . . . . . . . . . . . Parts Repaired 2 | . . . . . . . . . 1 1 . . . . . . . . Time 66 | . . . . . . . . . 22 44 . . . . . . . . Parts Recycled . | . . . . . . . . . . . . . . . . . . . Recycled Matter . | . . . . . . . . . . . . . . . . . . . Retrieved Matter . | . . . . . . . . . . . . . . . . . . . Retrieved Components . | . . . . . . . . . . . . . . . . . . . Parts Scanalyzed . | . . . . . . . . . . . . . . . . . . . Part Schematics Acquired . | . . . . . . . . . . . . . . . . . . . Parts Damaged . | . . . . . . . . . . . . . . . . . . . Bothacking | -11 -10 -10 -10 -9 -8 -8 -8 -8 -7 -7 -7 -6 -6 -6 -6 -5 -5 -5 ------------ Run | Yrd Mat Min Exi Min Mat Gar Mat Gar Fac Sto Gar Fac Low Low Dat Pro Fac Ext Used RIF Installer . | . . . . . . . . . . . . . . . . . . . Robots Hacked 4 | . . . . . 3 . . . . 1 . . . . . . . . Non-combat 4 | . . . . . 3 . . . . 1 . . . . . . . . Combat . | . . . . . . . . . . . . . . . . . . . Robot Hacks Applied 8 | . . . . . 5 . . . . 3 . . . . . . . . parse_system 1 | . . . . . 1 . . . . . . . . . . . . . no_distress 3 | . . . . . 2 . . . . 1 . . . . . . . . find_recycling 2 | . . . . . . . . . . 2 . . . . . . . . find_station 1 | . . . . . 1 . . . . . . . . . . . . . check_alert 1 | . . . . . 1 . . . . . . . . . . . . . Relay Couplers Released 64 | . . . . . . 24 . 17 . . 23 . . . . . . . Machine Destruction 57 | . . . . . . 24 . 13 . . 20 . . . . . . . Programmers 7 | . . . . . . . . 4 . . 3 . . . . . . . Fabnet Peak Effective % . | . . . . . . . . . . . . . . . . . . . Robots Rewired 14 | . . . . . . 2 . . . . . . . . . . 1 11 Allies Hacked . | . . . . . . . . . . . . . . . . . . . Hacks Repelled 1 | . . . . . . . . 1 . . . . . . . . . . Allies | -11 -10 -10 -10 -9 -8 -8 -8 -8 -7 -7 -7 -6 -6 -6 -6 -5 -5 -5 -------- Run | Yrd Mat Min Exi Min Mat Gar Mat Gar Fac Sto Gar Fac Low Low Dat Pro Fac Ext Total Allies 23 | . . . . 3 . 2 . 1 . . . . . . . . 1 16 Largest Group 9 | . . . . 3 3 2 1 1 1 . . . . . . . 1 9 Highest-Rated Group 242 | . . . . 40 40 62 31 39 39 . . . . . . . 29 242 Highest-Rated Ally 159 | . . . . 16 16 31 31 39 39 . . . . . . . 29 159 Warlord Squad Rendezvous 7 | . . . . . . . . . . . . . . . . . 7 . Dakka 4 | . . . . . . . . . . . . . . . . . 4 . Infantry 2 | . . . . . . . . . . . . . . . . . 2 . Geek 1 | . . . . . . . . . . . . . . . . . 1 . Total Orders . | . . . . . . . . . . . . . . . . . . . Ally Attacks 269 | . . . . . 32 32 . 16 6 . . . . . . . . 183 Total Damage 4876 | . . . . . 327 491 . 228 103 . . . . . . . . 3727 Kills 52 | . . . . . 4 8 . 6 1 . . . . . . . . 33 Allies Corrupted . | . . . . . . . . . . . . . . . . . . . Allies Melted . | . . . . . . . . . . . . . . . . . . . Intel | -11 -10 -10 -10 -9 -8 -8 -8 -8 -7 -7 -7 -6 -6 -6 -6 -5 -5 -5 ------- Run | Yrd Mat Min Exi Min Mat Gar Mat Gar Fac Sto Gar Fac Low Low Dat Pro Fac Ext Robot Analysis Total 2 | . . . . . 2 . . . . . . . . . . . . . Derelict Logs Recovered 4 | . . . . 1 . . . . . . . . 1 1 . 1 . . Drone Launches . | . . . . . . . . . . . . . . . . . . . Drone Recoveries . | . . . . . . . . . . . . . . . . . . . Exploration | -11 -10 -10 -10 -9 -8 -8 -8 -8 -7 -7 -7 -6 -6 -6 -6 -5 -5 -5 ------------- Run | Yrd Mat Min Exi Min Mat Gar Mat Gar Fac Sto Gar Fac Low Low Dat Pro Fac Ext Turns Passed 16098 | 60 655 175 280 563 2390 1105 52 963 957 652 1619 183 597 797 93 632 2755 1570 Spaces Moved 9246 | 52 243 157 294 455 953 646 44 575 667 264 998 134 408 599 78 403 1478 798 Core 19 | 8 . . . . . . . . . . . . . . . . . 11 Treads 457 | . . . . . 448 . . . . . . . . . . 1 8 . Legs . | . . . . . . . . . . . . . . . . . . . Wheels 8770 | 44 243 157 294 455 505 646 44 575 667 264 998 134 408 599 78 402 1470 787 Hover . | . . . . . . . . . . . . . . . . . . . Flight . | . . . . . . . . . . . . . . . . . . . Fastest Speed 50 | 50 80 80 95 95 95 120 120 105 115 115 115 130 120 120 120 120 120 50 Average Speed 126 | 75 80 93 95 95 178 120 120 120 117 122 125 130 122 120 120 140 133 125 Slowest Speed 250 | 80 80 95 95 95 250 160 120 165 120 130 130 130 130 165 120 240 245 160 Overloaded Moves . | . . . . . . . . . . . . . . . . . . . Propulsion Burnouts . | . . . . . . . . . . . . . . . . . . . Robots Hopped . | . . . . . . . . . . . . . . . . . . . Cave-ins Triggered . | . . . . . . . . . . . . . . . . . . . Exploration Rate (%) 52 | 3 37 34 70 79 78 81 8 79 23 41 84 3 66 75 69 52 47 70 Regions Visited 18 Branch Regions 9 Pre-discovered Areas 5 | . 1 . 1 . . . . . . . . . 1 . 1 . 1 . Known Exits Taken 10 | . . . . . 1 . 1 . 1 1 . 1 1 1 1 1 1 . Unknown Exits Taken 5 | 1 1 1 1 1 . . . . . . . . . . . . . . Scrap Searched 7 | . . . . 2 . . . . . . . . 2 2 . 1 . . Spaces Dug 85 | . . . . . 11 12 . 14 8 . 16 . . . . . 24 . Terrain Destroyed 994 | . . 1 . 9 17 12 . 153 22 5 26 . 7 19 . 8 168 547 Melee 83 | . . . . . 11 12 . 14 8 . 16 . . . . . 22 . Projectile 119 | . . 1 . 9 6 . . . . 5 5 . 7 19 . 8 27 32 AOE 792 | . . . . . . . . 139 14 . 5 . . . . . 119 515 Terrain Rammed . | . . . . . . . . . . . . . . . . . . . Walls Destroyed . | . . . . . . . . . . . . . . . . . . . Machines Disabled . | . . . . . . . . . . . . . . . . . . . Actions | -11 -10 -10 -10 -9 -8 -8 -8 -8 -7 -7 -7 -6 -6 -6 -6 -5 -5 -5 --------- Run | Yrd Mat Min Exi Min Mat Gar Mat Gar Fac Sto Gar Fac Low Low Dat Pro Fac Ext Total 12299 | 70 663 180 295 553 1486 828 43 717 788 483 1192 142 456 639 77 428 2063 1196 Wait 1533 | . 386 4 . 58 374 72 . 21 65 124 36 . 15 2 . 1 317 58 Move 9226 | 51 242 156 293 454 952 645 43 574 666 263 995 133 407 598 77 402 1477 798 Hop . | . . . . . . . . . . . . . . . . . . . Pick Up 181 | 12 7 5 1 5 28 8 . 5 10 11 10 3 4 7 . 6 38 21 Fast Attach 21 | . 1 2 . 1 2 . . . . . . 2 . 1 . . 4 8 Attach 112 | 6 2 . . 2 9 . . 5 3 8 7 2 5 8 . 3 23 29 Detach 7 | . . . . . . . . . . . . . . . . . 2 5 Swap 141 | . 1 2 . 3 25 12 . 8 6 17 10 1 . 1 . 1 43 11 Drop 111 | . 3 8 1 5 16 10 . . 9 6 4 1 . 1 . . 28 19 Fire 568 | 1 21 3 . 18 47 57 . 49 16 38 59 . 21 20 . 15 87 116 Melee 205 | . . . . 7 32 20 . 23 13 16 39 . 4 1 . . 33 17 Ram . | . . . . . . . . . . . . . . . . . . . Kick . | . . . . . . . . . . . . . . . . . . . Crush 1 | . . . . . 1 . . . . . . . . . . . . . Escape Stasis 99 | . . . . . . . . 32 . . 32 . . . . . 11 24 Rewire 94 | . . . . . . 4 . . . . . . . . . . . 90 Trap . | . . . . . . . . . . . . . . . . . . . Miscellaneous . | . . . . . . . . . . . . . . . . . . . Route ------- -11/Scrapyard -10/Materials -10/Mines (discovered 2 exits: [*Mat] / *Exi) -10/Exiles (discovered 2 exits: [*Min x2]) -9/Mines (discovered 2 exits: *Mat x2) -8/Materials (discovered 4 exits: *Fac x3 / Gar) -8/Garrison (discovered 3 exits: *Mat x3) -8/Materials -8/Garrison (discovered 3 exits: *Fac x3) -7/Factory (discovered 4 exits: *Fac / *Sto / Low x2) -7/Storage -7/Garrison (discovered 3 exits: *Fac x3) -6/Factory -6/Lower Caves -6/Lower Caves -6/Data Miner -5/Proximity Caves -5/Factory (discovered 2 exits: *Fac / *Ext) -5/Extension History --------- Turn | Location | Event 8 | -11/Scrapyard | Discovered new exit (range 16) 61 | -11/Scrapyard | Entered Materials 309 | -10/Materials | Build established: Mutant 677 | -10/Materials | Discovered new exit (range 7) 716 | -10/Materials | Entered Mines 720 | -10/Mines | Met a Derelict bent on vengeance 722 | -10/Mines | Met a Derelict shopkeep closing up shop 774 | -10/Mines | Discovered new exit (range 5) 886 | -10/Mines | Deemed a non-threat by the Exiles lab entrance 887 | -10/Mines | Discovered new exit (range 5) 891 | -10/Mines | Entered Exiles 909 | -10/Exiles | Discovered new exit (range 15) 919 | -10/Exiles | Met 8R-AWN 934 | -10/Exiles | Met EX-HEX 981 | -10/Exiles | Met EX-DEC 1006 | -10/Exiles | Learned location of Zion (-7) 1028 | -10/Exiles | Met EX-BIN 1040 | -10/Exiles | Aligned with FarCom system 1041 | -10/Exiles | Given EX-Vault access code 1063 | -10/Exiles | Opened EX-Vault 1068 | -10/Exiles | Found Skeleton Box 1087 | -10/Exiles | Warned to stay clear of 0b10 Research branches 1161 | -10/Exiles | Discovered new exit (range 14) 1171 | -10/Exiles | Left Exiles lab with Skeleton Box 1171 | -10/Exiles | Entered Mines 1203 | -9/Mines | Core integrity fell below 50% 1385 | -9/Mines | Learned Materials terminal intel 1425 | -9/Mines | Assisted by bots powering up and referring to "LRC-V3" 1428 | -9/Mines | Discovered new exit (range 10) 1697 | -9/Mines | Discovered new exit (range 11) 1734 | -9/Mines | Entered Materials 1734 | -8/Materials | Accompanied by 3 allies 1734 | -8/Materials | Evolved 4 slots: Utility x3, Weapon x1 1735 | -8/Materials | Loaded intel: 12 terminal locations 2114 | -8/Materials | Discovered new exit (range 17) 2692 | -8/Materials | Discovered new exit (range 5) 2883 | -8/Materials | Build established: Skirmisher 3041 | -8/Materials | Identified exit to Factory 3989 | -8/Materials | Discovered exit to Factory (range 15) 4107 | -8/Materials | Identified exit to Garrison 4124 | -8/Materials | Entered Garrison 4222 | -8/Garrison | Triggered checkpoint 4304 | -8/Garrison | Garrison Relay disabled 4480 | -8/Garrison | Triggered checkpoint 4481 | -8/Garrison | Core integrity fell below 50% 4509 | -8/Garrison | Build established: Mutant 4563 | -8/Garrison | Discovered new exit (range 13) 4656 | -8/Garrison | Triggered checkpoint 4679 | -8/Garrison | Garrison Relay disabled 4698 | -8/Garrison | Discovered new exit (range 25) 4698 | -8/Garrison | Discovered new exit (range 67) 4698 | -8/Garrison | Discovered new exit (range 88) 4812 | -8/Garrison | Triggered checkpoint 4812 | -8/Garrison | Triggered checkpoint 4899 | -8/Garrison | Garrison Relay disabled 4918 | -8/Garrison | Triggered checkpoint 4951 | -8/Garrison | Garrison Relay disabled 4953 | -8/Garrison | Garrison Relay disabled 5131 | -8/Garrison | Build established: Skirmisher 5187 | -8/Garrison | Garrison Relay disabled 5229 | -8/Garrison | Entered Materials 5229 | -8/Materials | Accompanied by 1 ally 5240 | -8/Materials | Identified exit to Garrison 5281 | -8/Materials | Entered Garrison 5281 | -8/Garrison | Accompanied by 1 ally 5469 | -8/Garrison | Triggered checkpoint 5513 | -8/Garrison | Triggered checkpoint 5519 | -8/Garrison | Triggered checkpoint 5596 | -8/Garrison | Lost 5 parts (2n1u2w) 5716 | -8/Garrison | Garrison Relay disabled 5752 | -8/Garrison | Discovered exit to Factory (range 12) 5878 | -8/Garrison | Discovered exit to Factory (range 12) 5908 | -8/Garrison | Phase Generator disabled 5937 | -8/Garrison | Remotely autohacked Sealed Heavy Doors 5937 | -8/Garrison | Rescued a captive Derelict 5966 | -8/Garrison | Discovered exit to Factory (range 91) 5966 | -8/Garrison | Discovered exit to Factory (range 50) 5966 | -8/Garrison | Discovered exit to Factory (range 17) 6099 | -8/Garrison | Triggered checkpoint 6125 | -8/Garrison | Garrison Relay disabled 6186 | -8/Garrison | Triggered checkpoint 6244 | -8/Garrison | Entered Factory 6244 | -7/Factory | Accompanied by 1 ally 6244 | -7/Factory | Evolved 2 slots: Power x1, Utility x1 6612 | -7/Factory | Identified exit to Storage 6612 | -7/Factory | Identified exit to Lower Caves 6690 | -7/Factory | Repaired Med. Reactive Plating 6958 | -7/Factory | Build established: Mutant 7102 | -7/Factory | Discovered new exit (range 13) 7201 | -7/Factory | Entered Storage 7530 | -7/Storage | Repaired Imp. Medium Armor Plating 7601 | -7/Storage | First assault squad dispatched 7719 | -7/Storage | Lost 4 parts (2p2u) 7852 | -7/Storage | Identified exit to Garrison 7853 | -7/Storage | Entered Garrison 7987 | -7/Garrison | Triggered checkpoint 8015 | -7/Garrison | Garrison Relay disabled 8323 | -7/Garrison | Triggered checkpoint 8545 | -7/Garrison | Garrison Relay disabled 8579 | -7/Garrison | Discovered new exit (range 15) 8625 | -7/Garrison | Triggered checkpoint 8684 | -7/Garrison | Garrison Relay disabled 8804 | -7/Garrison | Discovered new exit (range 15) 9016 | -7/Garrison | Garrison Relay disabled 9061 | -7/Garrison | Triggered checkpoint 9127 | -7/Garrison | Triggered checkpoint 9183 | -7/Garrison | Garrison Relay disabled 9209 | -7/Garrison | Discovered new exit (range 8) 9218 | -7/Garrison | Attempted to access garrison exit controls, blocked by remote lockdown 9340 | -7/Garrison | Attempted to access garrison exit controls, blocked by remote lockdown 9345 | -7/Garrison | Build established: Scavenger-Mutant 9472 | -7/Garrison | Entered Factory 9472 | -6/Factory | Evolved 2 slots: Utility x1, Weapon x1 9583 | -6/Factory | Discovered new exit (range 3) 9588 | -6/Factory | Identified exit to Lower Caves 9655 | -6/Factory | Entered Lower Caves 9709 | -6/Lower Caves | Met a Warlord Commander 9710 | -6/Lower Caves | Learned location of Warlord (-5) 9711 | -6/Lower Caves | Warlord Commander delivered Encrypted Comm Array 9715 | -6/Lower Caves | Found Encrypted Comm Array 10102 | -6/Lower Caves | Learned Factory terminal intel 10165 | -6/Lower Caves | Build established: Gunner 10187 | -6/Lower Caves | Discovered new exit (range 7) 10203 | -6/Lower Caves | Identified exit to Lower Caves 10252 | -6/Lower Caves | Entered another Lower Caves area 10431 | -6/Lower Caves | Encountered a Warlord checkpoint 10503 | -6/Lower Caves | Lost 3 allies 10526 | -6/Lower Caves | Lost 3 parts (1u2w) 10826 | -6/Lower Caves | Build established: Scavenger-Gunner 10851 | -6/Lower Caves | Learned Factory emergency access door positions 10989 | -6/Lower Caves | Discovered new exit (range 11) 10999 | -6/Lower Caves | Ambushed by research squad 11046 | -6/Lower Caves | Identified exit to Data Miner 11049 | -6/Lower Caves | Entered Data Miner 11049 | -6/Data Miner | Discovered new exit (range 6) 11057 | -6/Data Miner | Identified exit to Proximity Caves 11062 | -6/Data Miner | Lost 4 parts (1p1n2w) 11072 | -6/Data Miner | Met Data Miner 11101 | -6/Data Miner | Learned location of Section 7 (-2) 11101 | -6/Data Miner | Acquired the access code to Warlord's prototype stash 11112 | -6/Data Miner | Received God Mode back door access code from Data Miner 11142 | -6/Data Miner | Entered Proximity Caves 11471 | -5/Proximity Caves | Learned Factory machine intel 11479 | -5/Proximity Caves | Attracted the attention of an 0b10 checkpoint 11604 | -5/Proximity Caves | Discovered new exit (range 12) 11635 | -5/Proximity Caves | Identified exit to Factory 11762 | -5/Proximity Caves | Spotted B-75 Beast 11774 | -5/Proximity Caves | Entered Factory 11774 | -5/Factory | Evolved 2 slots: Utility x2 11776 | -5/Factory | Loaded intel: 279 machine locations 11777 | -5/Factory | Loaded intel: 28 terminal locations 12029 | -5/Factory | Joined by Warlord Infantry squad 12919 | -5/Factory | Joined by Warlord Dakka squad 12993 | -5/Factory | Lost 3 allies 13021 | -5/Factory | Found Imp. Powered Armor 13055 | -5/Factory | Joined by Warlord Dakka squad 13212 | -5/Factory | Lost 4 allies 13238 | -5/Factory | Destroyed 7 combat bots 13274 | -5/Factory | First assault squad dispatched 13312 | -5/Factory | Joined by Warlord Dakka squad 13415 | -5/Factory | Lost 4 allies 13561 | -5/Factory | Joined by Warlord Geek squad 13702 | -5/Factory | Joined by Warlord Infantry squad 14030 | -5/Factory | Joined by Warlord Dakka squad 14050 | -5/Factory | Discovered new exit (range 15) 14109 | -5/Factory | Identified exit to Factory 14296 | -5/Factory | Lost 4 allies 14299 | -5/Factory | Lost 3 parts (1p1n1w) 14387 | -5/Factory | Discovered new exit (range 10) 14399 | -5/Factory | Identified exit to Extension 14529 | -5/Factory | Entered Extension 14622 | -5/Extension | Rescued a captive Derelict 14623 | -5/Extension | Rescued a captive Derelict 14884 | -5/Extension | Rescued a captive Derelict 15129 | -5/Extension | First assault squad dispatched 15284 | -5/Extension | Destroyed 7 combat bots 15329 | -5/Extension | Disrupted transfer network 15329 | -5/Extension | Spotted B-75 Beast 15333 | -5/Extension | Destroyed B-75 Beast 15381 | -5/Extension | Spotted B-75 Beast 15383 | -5/Extension | Allies destroyed B-75 Beast 15414 | -5/Extension | Lost 3 allies 15488 | -5/Extension | Rescued a captive Derelict 15600 | -5/Extension | Lost 4 allies 15607 | -5/Extension | High security lockdown imminent 15687 | -5/Extension | High security lockdown engaged 15792 | -5/Extension | Lost 6 parts (2p3u1w) 15829 | -5/Extension | Destroyed 15 combat bots 15877 | -5/Extension | Core integrity fell below 50% 15883 | -5/Extension | Rescued A7 15918 | -5/Extension | Lost 3 parts (1u2w) 15937 | -5/Extension | Destroyed 11 combat bots 16080 | -5/Extension | Extracted ID and sensor layout for unrecognized location from A7's data core 16093 | -5/Extension | Released all parts (4) 16096 | -5/Extension | Core integrity fell below 20% 16099 | -5/Extension | Destroyed by P-70 Sage with High-powered Shock Rifle Last Messages --------------- Adv. Heat Sink destroyed. P-70 Sage resets P-70 Sage, system corruption cleaned. Lrg. Storage Unit destroyed. Mic. Fission Core destroyed. Slug penetrates Wall. Com. Wheel destroyed. Adv. Targeting Computer destroyed. System Shield destroyed. Released Lance. Released Imp. Signal Interpreter. Released Imp. Target Analyzer. Released Gauss Rifle. Acquired Skeleton Box. Slug penetrates P-70 Sage. Penetrated by Slug. Slug penetrates Wall. Door malfunctions. Penetrated by Slug. Acquired 57 matter. Map ----- +----------------------------------------------------+ | | | | | | | | | | | | | | | | | | | | | | | | | | | | | | | | | | | | | | | ########???????????????###############""########?? | | ## ## #####??????####### # # #% " ###? | | #######?????####### #!##! % "####? | | %! ########## * [pgi[ =! % " | | [%%% ######### =%! !g=!=%h%[ !%%" | | " " ] l!p%%pm*=! %!% | | [%![" ###############@ ! ;*#%"h!/%= "##### | | =[ ! % ###############= = ;[ #Y != # #### | | #!# # ##?????????#######;;/########"/#######?? | | = = # ###?????????# #?# % #???? | | #""## #####?????????# ##??? " ##??? | | # #######?????????## ##???? "%"##??? | | ##??#####???????????## ##???? "%##??? | | #???????????????????## ##????? "##??? | | ????????????????????## ! ##?????? ##??? | | ????????????????????## ##??????? ##??? | | ????????????????????## ##????????????? | | ????????????????????## = ##????????????? | | ????????????????????## ##????????????? | | ????????????????????##[ ##????????????? | | ????????????????????#################????????????? | | ????????????????????#################????????????? | | ?????????????????????????????????????????????????? | | ?????????????????????????????????????????????????? | | ?????????????????????????????????????????????????? | | ?????????????????????????????????????????????????? | | ?????????????????????????????????????????????????? | | ?????????????????????????????????????????????????? | | ?????????????????????????????????????????????????? | | ?????????????????????????????????????????????????? | | ?????????????????????????????????????????????????? | +----------------------------------------------------+ Best States ------------- Heat Dissipation 90 Coolant Potential 80 Energy Generation 32 Energy Capacity 505 Matter Stores 300 Matter Capacity 300 Sight Range 16 Robot Scan Range 14 Terrain Scan Density 10 Power Amplification 20 Corruption Block 6 Armor Coverage 525 Resistance: KI 30 Weapon Cycling 20 Evasion (%) 50 Targeting Accuracy 8 Target Analysis 6 Core Analysis 6 Recoil Reduction 2 Particle Charging 15 Force Boost 20 Defensive Hacking 10 Item Schematics ----------------- Combat Drone Bay | -6/Data Miner | Free Lgt. Regenerative Plating | -6/Data Miner | Free Enh. Flexi-carbon Leg | -6/Data Miner | Free Imp. Energy Well | -6/Data Miner | Free Cld. Plasma Rifle | -6/Data Miner | Free Imp. Gyrokinetic Inverter | -6/Data Miner | Free Imp. Cloaking Device | -6/Data Miner | Free Dispersion Rifle | -6/Data Miner | Free Robot Schematics ------------------ Y-64 Sentinel | -6/Data Miner | Free G-50 Soldier | -6/Data Miner | Free X-72 Disruptor | -6/Data Miner | Free L-41 Fighter | -6/Data Miner | Free M-22 Extractor | -6/Data Miner | Free M-30 Cleanser | -6/Data Miner | Free H-77 Assassin | -6/Data Miner | Free O-32 Director | -6/Data Miner | Free Fabricated ------------ Nothing Alien Tech Used ----------------- None Achievements -------------- Prolific Hacker Challenges ------------ None Game ------ Seed WeightMiningWand Manual? 0 Play Time 03:33:36 Cumulative 140.9 hours Start 2024.08.11 @ 22:26:13 End 2024.08.12 @ 08:41:23 Sessions 5 Manual Loads 0 Difficulty Rogue Special Mode None Game No. 135 Rogue 126 Adventurer 9 Explorer 0 Win Type - Total 0 Types 0/0/0/0/0/0/0/0/0 Lore% 47 Gallery% 62 Achievement% 48 Wizard Run 0 Options --------- Layout 1 ASCII 0 Keyboard 0 Movement Numpad Keybinds 0 Fullscreen 1 Font 24/Smallcaps Map View 50x35 Zoom Use 0% Tactical HUD 0 Map Filters NONE Filters NONE Steam 1 RUN: a655f33a-71b7-49b6-be16-3460b97e5ab6